lending/lending_fUSD_20240807
["ID","MTS","AMOUNT","RATE_DAILY","PERIOD"]
[334402189,1723033841489,-258.47438915,0.00020831,2]
[334402190,1723033841499,-380.18011514,0.00020831,2]
[334402191,1723033841508,-500.0,0.00020835,2]
[334402192,1723033841518,-900.0,0.00020856,2]
[334402193,1723033841532,-500.0,0.0002089,2]
[334402194,1723033841543,-900.0,0.00020898,2]
[334402195,1723033841553,-2340.89780687,0.00020899,2]
[334402196,1723033841564,-1738.76964944,0.00020899,2]
[334402197,1723033841573,-4688.29585893,0.00020899,2]
[334402198,1723033841583,-219.34984986,0.00020899,2]
[334402199,1723033841592,-187.44294184,0.00020899,2]
[334402200,1723033841603,-188.58901084,0.00020899,2]
[334402201,1723033841612,-202.81555917,0.00020899,2]
[334402202,1723033841621,-400.0,0.00020899,2]
[334402203,1723033841631,-155.0,0.00020899,2]
[334402204,1723033841640,-202.81555917,0.00020899,2]
[334402205,1723033841649,-700.0,0.00020923,2]
[334402206,1723033841659,-900.0,0.00020949,2]
[334402207,1723033841668,-364.03356845,0.00020999,2]
[334402208,1723033841677,-216.06704969,0.00020999,2]
[334402209,1723033841686,-384.69961889,0.00020999,2]
[334402210,1723033841696,-3885.11637784,0.00020999,2]
[334402212,1723033841705,-205.85700732,0.00020999,2]
[334402213,1723033841715,-676.06380019,0.00020999,2]
[334402214,1723033841726,-155.0,0.00020999,2]
[334402215,1723033841735,-384.69961889,0.00020999,2]
[334402216,1723033841744,-653.37427882,0.00020999,2]
[334402217,1723033841753,-174.17944646,0.00020999,2]
[334402218,1723033841762,-155.0,0.00020999,2]
[334402219,1723033841771,-159.54246192,0.00020999,2]
[334402220,1723033841780,-433.10943562,0.00021,2]
[334402221,1723033841790,-546.73880243,0.00021019,2]
[334402222,1723033841799,-500.0,0.00021021,2]
[334402223,1723033841808,-167.0,0.00021091,2]
[334402224,1723033841817,-500.0,0.00021172,2]
[334402225,1723033841827,-200.0,0.00021225,2]
[334402226,1723033841836,-500.0,0.00021252,2]
[334402227,1723033841845,-500.0,0.00021259,2]
[334402228,1723033841855,-500.0,0.00021261,2]
[334402229,1723033841864,-20023.5459725,0.00021303,4]
[334402230,1723033841873,-500.0,0.00021313,2]
[334402231,1723033841882,-700.0,0.00021331,2]
[334402232,1723033841891,-754.59370211,0.00021362,2]
[334402233,1723033841901,-600.0,0.0002137,2]
[334402234,1723033841910,-700.0,0.0002137,2]
[334402235,1723033841920,-600.0,0.00021461,2]
[334402236,1723033841929,-500.0,0.00021477,2]
[334402237,1723033841939,-500.0,0.00021528,2]
[334402238,1723033841948,-151.0,0.00021553,2]
[334402239,1723033841958,-900.0,0.00021597,2]
[334402240,1723033841969,-420.77,0.00021602,2]
[334402241,1723033841978,-420.77,0.00021602,2]
[334402242,1723033841988,-420.77,0.00021602,2]
[334402243,1723033841997,-420.77,0.00021602,2]
[334402244,1723033842007,-420.77,0.00021602,2]
[334402245,1723033842016,-1669.54,0.00021602,2]
[334402246,1723033842026,-167.0,0.00021706,2]
[334402247,1723033842036,-600.0,0.00021719,2]
[334402248,1723033842045,-16376.3216811,0.00021735,4]
[334402249,1723033842054,-669.38054364,0.00021745,2]
[334402250,1723033842333,-900.0,0.00021751,2]
[334402251,1723033842344,-500.0,0.00021786,2]
[334402252,1723033842353,-700.0,0.00021795,2]
[334402253,1723033842363,-500.0,0.00021813,2]
[334402254,1723033842372,-150.0,0.000219,2]
[334402255,1723033842382,-200.0,0.000219,2]
[334402256,1723033842391,-797.06804965,0.000219,2]
[334402257,1723033842401,-190.11178218,0.000219,2]
[334402258,1723033842410,-2000.0,0.000219,2]
[334402259,1723033842419,-1200.0,0.000219,2]
[334402260,1723033842429,-495.0,0.000219,2]
[334402261,1723033842438,-279.0894151,0.000219,2]
[334402262,1723033842448,-20023.5459725,0.00021908,4]
[334402263,1723033842457,-153.2,0.00021908,2]
[334402264,1723033842468,-500.0,0.00021916,2]
[334402265,1723033842477,-1000.0,0.00021917,2]
[334402266,1723033842486,-1000.0,0.00021917,2]
[334402267,1723033842495,-1000.0,0.00021917,2]
[334402268,1723033842505,-1000.0,0.00021917,2]
[334402269,1723033842515,-621.56228293,0.00021917,2]
[334402270,1723033842528,-875.98,0.00021918,2]
[334402271,1723033842537,-2367.5,0.00021918,2]
[334402272,1723033842547,-150.0,0.00021918,2]
[334402273,1723033842556,-500.0,0.00021918,2]
[334402274,1723033842567,-500.0,0.00021918,2]
[334402275,1723033842576,-600.0,0.00021918,2]
[334402276,1723033842585,-700.0,0.00021918,2]
[334402277,1723033842595,-500.0,0.00021936,2]
[334402278,1723033842606,-529.43,0.00021957,2]
[334402279,1723033842616,-301.06,0.00021957,2]
[334402280,1723033842630,-530.69,0.00021957,2]
[334402281,1723033842640,-367.15,0.00021958,2]
[334402282,1723033842650,-150.0,0.00021958,2]
[334402283,1723033842660,-150.0,0.00021958,2]
[334402284,1723033842669,-356.33,0.00021958,2]
[334402285,1723033842679,-150.0,0.00021958,2]
[334402287,1723033842689,-150.0,0.00021958,2]
[334402290,1723033842699,-356.33,0.00021958,2]
[334402293,1723033842708,-150.0,0.00021958,2]
[334402296,1723033842720,-150.0,0.00021958,2]
[334402298,1723033842729,-150.0,0.00021958,2]
[334402301,1723033842739,-356.33,0.00021958,2]
[334402303,1723033842748,-150.0,0.00021958,2]
[334402305,1723033842757,-356.33,0.00021958,2]
[334402307,1723033842766,-355.97,0.00021958,2]
[334402309,1723033842775,-600.0,0.00021965,2]
[334402311,1723033842784,-202.8,0.00021995,5]
[334402313,1723033842793,-500.0,0.00022,10]
[334402315,1723033842802,-241.99970463,0.00022,2]
[334402316,1723033842811,-1068.91009714,0.00022,2]
[334402319,1723033842821,-160.794063,0.00022,4]
[334402322,1723033842830,-500.0,0.00022005,2]
[334402325,1723033842839,-226.96861237,0.0002211,2]
[334402328,1723033842849,-900.0,0.0002211,2]
[334402331,1723033842858,-500.0,0.00022119,2]
[334402334,1723033842867,-600.0,0.00022188,2]
[334402338,1723033842876,-150.0,0.000222,2]
[334402342,1723033842885,-900.0,0.00022201,2]
[334402344,1723033842894,-150.0,0.00022239,2]
[334402348,1723033842904,-700.0,0.0002224,2]
[334402352,1723033842913,-500.0,0.00022279,2]
[334402355,1723033842922,-500.0,0.0002228,2]
[334402358,1723033842931,-162.0994143,0.00022322,2]
[334402361,1723033842941,-151.0,0.00022331,7]
[334402362,1723033842950,-179.382566,0.00022331,7]
[334402364,1723033842960,-179.382566,0.00022331,7]
[334402365,1723033842970,-16376.3216811,0.00022331,4]
[334402366,1723033842979,-150.0,0.00022335,2]
[334402367,1723033842989,-203.1549,0.00022341,2]
[334402368,1723033842998,-20023.5459725,0.0002236,4]
[334402369,1723033843008,-982.23705024,0.0002237,2]
[334402370,1723033843018,-150.0,0.00022396,2]
[334402371,1723033843027,-338046.60671147,0.000224,2]
[334402372,1723033843037,-171.0,0.000224,2]
[334402373,1723033843046,-171.0,0.000224,2]
[334402374,1723033843056,-859.0,0.000224,2]
[334402375,1723033843065,-150.0,0.00022415,2]
[334402376,1723033843074,-12681.15039167,0.00022416,4]
[334402377,1723033843092,-2371.9302,0.00022416,4]
[334402378,1723033843104,-616.55,0.00022416,4]
[334402379,1723033843116,-706.69108943,0.00022416,4]
[334402380,1723033843126,-4514.56851889,0.00022416,4]
[334402381,1723033843138,-462.45588772,0.00022416,4]
[334402382,1723033843244,-695.298024,0.00020196,2]
[334402383,1723033843254,-155.0,0.00020821,2]
[334402384,1723033843263,-400.0,0.00020899,2]
[334402385,1723033843272,-695.298024,0.00022331,7]
[334402386,1723033843281,-263.70656848,0.00022416,4]
[334402387,1723033843296,-2303.5,0.00022416,4]
[334402392,1723033843611,-325.0,0.0001351,2]
[334402393,1723033843631,-859.51400069,0.0001351,2]
[334402394,1723033843640,-258.47438915,0.00020821,2]
[334402395,1723033843649,-150.0,0.00022402,2]
[334402396,1723033843659,-12479.31499741,0.00022416,4]
[334402397,1723033843668,-20023.5459725,0.00022421,4]
[334402398,1723033843677,-16376.3216811,0.00022423,4]
[334402399,1723033843686,-20023.5459725,0.00022423,4]
[334402400,1723033843696,-3154.51396338,0.00022426,2]
[334402401,1723033843707,-1109.25964547,0.00022426,2]
[334402402,1723033843721,-66.95974955,0.00022426,2]
[334402403,1723033843730,-7491.3352806,0.00022426,2]
[334402404,1723033843740,-329.70014336,0.00022426,2]
[334402406,1723033846119,-695.298024,0.00020196,2]
[334402407,1723033846129,-364.03356845,0.00020899,2]
[334402408,1723033846138,-148.66840755,0.00020999,2]
[334402409,1723033846150,-6.33159245,0.00020999,2]
[334402410,1723033846159,-488.06840755,0.00022,2]
[334402411,1723033846180,-235.93159245,0.00022,2]
[334402412,1723033846190,-264.06840755,0.00022331,7]
[334402413,1723033846201,-431.22961645,0.00022331,7]
[334402414,1723033846211,-692.17038355,0.00022426,2]
[334402415,1723033846352,-907.48,0.00022426,2]
[334402416,1723033846410,-2323.72174391,0.00022426,2]
[334402418,1723033975762,25000.0,0.00024658,30]
[334402419,1723033979934,25000.0,0.00024658,31]
[334402420,1723033996867,25000.0,0.00024658,32]
[334402421,1723033997819,500.0,0.00024932,120]
[334402422,1723034000418,25000.0,0.00024658,33]
[334402424,1723034596903,500.0,0.00024932,120]
[334402425,1723034601239,1821.0,0.00025,60]
[334402426,1723034785346,499.99,0.00024658,30]
[334402427,1723034812939,4866.0,0.00024657,30]
[334402428,1723034846068,1550.0,0.0001,2]
[334402463,1723035032207,-636.50353072,0.00010899,2]
[334402467,1723035032222,-966.21666469,0.00010899,2]
[334402470,1723035032233,-741.8811006,0.00010899,2]
[334402478,1723035032309,-147.54500399,0.00010899,2]
[334402479,1723035032318,-1725.0,0.00010899,2]
[334402481,1723035032327,-561.58,0.00010999,2]
[334402483,1723035032337,-971.90890334,0.00011186,2]
[334402485,1723035032348,-672.3424,0.00011186,2]
[334402486,1723035032360,-784.34351086,0.00011186,2]
[334402488,1723035032371,-389.35091064,0.00011186,2]
[334402489,1723035032382,-5373.36897696,0.00011186,2]
[334402490,1723035032393,-363.76455997,0.00011186,2]
[334402491,1723035032404,-1299.333284,0.00011186,2]
[334402492,1723035032415,-5865.45045287,0.00011186,2]
[334402493,1723035032428,-9592.61955184,0.00011186,2]
[334402494,1723035032437,-2619.4128112,0.00011321,2]
[334402495,1723035032448,-2522.06617273,0.00011321,2]
[334402496,1723035032460,-260.06110727,0.00011321,2]
[334402497,1723035032469,-5401.5400912,0.00011321,2]
[334402498,1723035032478,-1723.32436737,0.0001185,2]
[334402499,1723035032490,-619.65174307,0.0001185,2]
[334402500,1723035032501,-497.00422581,0.0001185,2]
[334402501,1723035032511,-2567.60241988,0.0001185,2]
[334402502,1723035032522,-1410.48824254,0.0001185,2]
[334402503,1723035032531,-3402.9798974,0.00011959,2]
[334402504,1723035032541,-1869.80144665,0.00011959,2]
[334402505,1723035032594,-1533.17845075,0.00011959,2]
[334402506,1723035032603,-150.0,0.00012329,2]
[334402507,1723035032612,-4061.57258938,0.0001236,2]
[334402514,1723035038417,-576.87446552,0.00011186,2]
[334402515,1723035038429,-918.803945,0.00011186,2]
[334402516,1723035038441,-250.485,0.00011186,2]
[334402517,1723035038452,-902.63081299,0.00011186,2]
[334402518,1723035038603,-965.41315995,0.00011186,2]
[334402535,1723035041866,-2268.5,0.00011186,2]
[334402536,1723035041877,-362.84903953,0.00011186,2]
[334402537,1723035041892,-4284.46985771,0.00011186,2]
[334402538,1723035041902,-3978.09066242,0.00011324,2]
[334402539,1723035041911,-938.42741062,0.0001236,2]
[334402540,1723035041920,-499.99,0.0001236,2]
[334402541,1723035041931,-2385.26322028,0.00012391,2]
[334402542,1723035041940,-3119.70333999,0.00012391,2]
[334402543,1723035041949,-2209.93398544,0.00012397,2]
[334402544,1723035041960,-2084.84657998,0.00012397,2]
[334402545,1723035041971,-3031.1823392,0.00012397,2]
[334402546,1723035041980,-3031.1823392,0.00012397,2]
[334402547,1723035041989,-594.81380735,0.00012613,2]
[334402548,1723035041999,-1297.73941226,0.00012613,2]
[334402549,1723035042008,-484.99646143,0.00012613,2]
[334402550,1723035042018,-1184.51400069,0.00012665,2]
[334402551,1723035042027,-1184.51400069,0.00012665,2]
[334402552,1723035042036,-1138.64679831,0.00012665,2]
[334402553,1723035042045,-600.50572099,0.00012665,2]
[334402554,1723035042055,-1074.23899927,0.00012666,2]
[334402555,1723035042065,-547.5804574,0.00012666,2]
[334402556,1723035042074,-499.62936457,0.00012666,2]
[334402557,1723035042085,-1176.45926667,0.00012666,2]
[334402558,1723035042095,-532.06069874,0.00012681,2]
[334402559,1723035042105,-359.26552808,0.00012681,2]
[334402560,1723035042114,-400.0,0.00012681,2]
[334402561,1723035042123,-255.09228319,0.00012681,2]
[334402562,1723035042133,-528.71768008,0.00012681,2]
[334402563,1723035042143,-921.16736327,0.00012681,2]
[334402564,1723035042153,-723.10580785,0.00012681,2]
[334402565,1723035042162,-528.71768008,0.00012681,2]
[334402566,1723035042171,-210.91712052,0.00012681,2]
[334402567,1723035042181,-493.40828131,0.0001269,2]
[334402568,1723035042191,-200.42850144,0.0001269,2]
[334402569,1723035042200,-313.59536619,0.0001269,2]
[334402570,1723035042211,-155.69036707,0.0001269,2]
[334402571,1723035042221,-243.154171,0.0001269,2]
[334402572,1723035042231,-653.37427882,0.0001269,2]
[334402573,1723035042241,-476.7534528,0.0001269,2]
[334402574,1723035042251,-155.0,0.0001269,2]
[334402575,1723035042260,-155.0,0.0001269,2]
[334402576,1723035042270,-313.59536619,0.0001269,2]
[334402577,1723035042279,-248.01860288,0.0001269,2]
[334402578,1723035042288,-159.54246192,0.0001269,2]
[334402579,1723035042298,-164.33652674,0.00012696,2]
[334402580,1723035042309,-380.18011514,0.00012696,2]
[334402581,1723035042319,-737.40257968,0.00012696,2]
[334402583,1723035042329,-367.71679801,0.00012696,2]
[334402585,1723035042339,-210.97297228,0.00012696,2]
[334402587,1723035042349,-155.0,0.00012696,2]
[334402589,1723035042359,-628.3730026,0.00012696,2]
[334402591,1723035042368,-155.0,0.00012696,2]
[334402593,1723035042378,-197.05301904,0.00012696,2]
[334402595,1723035042387,-155.0,0.00012696,2]
[334402597,1723035042396,-297.369235,0.00012696,2]
[334402598,1723035042406,-155.0,0.00012696,2]
[334402600,1723035042415,-365.60352756,0.00012696,2]
[334402602,1723035042425,-155.0,0.00012696,2]
[334402604,1723035042435,-155.0,0.00012696,2]
[334402606,1723035042445,-347.54171027,0.00012696,2]
[334402608,1723035042454,-155.0,0.00012749,2]
[334402610,1723035042464,-454.39810402,0.00012749,2]
[334402612,1723035042473,-218.82650033,0.00012749,2]
[334402614,1723035042482,-649.5964416,0.00012749,2]
[334402616,1723035042491,-578.55400603,0.00012749,7]
[334402618,1723035042501,-439.89968088,0.00012749,2]
[334402620,1723035042511,-155.0,0.00012818,2]
[334402622,1723035042521,-155.0,0.00012818,2]
[334402624,1723035042531,-364.03356845,0.00012818,2]
[334402626,1723035042540,-309.16579736,0.00012818,2]
[334402628,1723035042550,-155.0,0.00012826,2]
[334402630,1723035042559,-205.85700732,0.00012826,2]
[334402632,1723035042569,-155.0,0.00012826,2]
[334402634,1723035042578,-300.0,0.00013,2]
[334402636,1723035042588,-203.33375775,0.0001351,2]
[334402638,1723035042598,-22648.60761236,0.0001351,2]
[334402640,1723035042608,-171.83,0.00013699,2]
[334402642,1723035042617,-552.48,0.00013973,2]
[334402644,1723035042627,-35713.01941175,0.00014261,2]
[334402646,1723035042637,-905.62,0.00014351,2]
[334402648,1723035042646,-180.69,0.00014728,2]
[334402650,1723035042656,-1466.0,0.00015,2]
[334402652,1723035042666,-282.269,0.00015719,2]
[334402654,1723035042675,-200.0,0.00016296,2]
[334402656,1723035042685,-250.0,0.00016427,2]
[334402658,1723035042695,-2751.0,0.00016454,2]
[334402660,1723035042705,-1763.4763965,0.000165,2]
[334402662,1723035042714,-250.0,0.00016667,2]
[334402664,1723035042724,-200.0,0.00016727,2]
[334402666,1723035042734,-449.0828,0.00016782,2]
[334402668,1723035042743,-223.6374,0.00016849,2]
[334402670,1723035042753,-180.69,0.00016992,2]
[334402672,1723035042762,-2340.89780687,0.00017259,2]
[334402674,1723035042772,-383.52516698,0.00017533,2]
[334402677,1723035042797,-2451.42311181,0.00017533,2]
[334402679,1723035042806,-2834.94827879,0.00017533,2]
[334402681,1723035042816,-300.0,0.00017804,2]
[334402683,1723035042825,-155.0,0.00017807,2]
[334402685,1723035042836,-1000.0,0.00017967,2]
[334402687,1723035042846,-500.0,0.00018152,2]
[334402713,1723035043042,-500.0,0.00018162,2]
[334402717,1723035043119,-500.0,0.00018183,2]
[334402720,1723035043129,-500.0,0.00018259,2]
[334402723,1723035043139,-500.0,0.00018436,2]
[334402726,1723035043149,-1275.10393157,0.00018499,2]
[334402728,1723035043159,-155.0,0.00018529,2]
[334402731,1723035043168,-500.0,0.00018542,2]
[334402734,1723035043177,-676.06380019,0.00018547,2]
[334402736,1723035043187,-686.73269963,0.00018547,2]
[334402738,1723035043196,-500.0,0.0001856,2]
[334402740,1723035043206,-155.0,0.00018599,2]
[334402742,1723035043215,-2442.6021425,0.000186,2]
[334402744,1723035043224,-347.18470273,0.00018708,2]
[334402745,1723035043234,-500.0,0.00018709,2]
[334402747,1723035043244,-500.0,0.00018722,2]
[334402749,1723035043254,-500.0,0.00018808,2]
[334402752,1723035043263,-500.0,0.00018827,2]
[334402753,1723035043274,-167.0,0.00018838,2]
[334402754,1723035043284,-500.0,0.00018882,2]
[334402755,1723035043293,-500.0,0.00018885,2]
[334402756,1723035043303,-155.0,0.00018898,2]
[334402757,1723035043312,-155.0,0.00018898,2]
[334402758,1723035043323,-308.13974125,0.00018898,2]
[334402759,1723035043333,-500.0,0.00018927,2]
[334402760,1723035043343,-500.0,0.00018948,2]
[334402761,1723035043353,-158.93675276,0.00018999,2]
[334402762,1723035043363,-328.11060008,0.00018999,2]
[334402763,1723035043373,-164.31632358,0.00018999,2]
[334402764,1723035043383,-265.33096073,0.00018999,2]
[334402765,1723035043394,-155.0,0.00018999,2]
[334402766,1723035043403,-155.0,0.00019,2]
[334402767,1723035043413,-500.0,0.00019011,2]
[334402768,1723035043423,-500.0,0.00019017,2]
[334402769,1723035043433,-155.0,0.00019045,2]
[334402770,1723035043443,-270.46597516,0.00019045,2]
[334402771,1723035043452,-155.0,0.00019045,2]
[334402772,1723035043462,-500.0,0.00019067,2]
[334402773,1723035043472,-500.0,0.00019091,2]
[334402774,1723035043482,-500.0,0.00019132,2]
[334402775,1723035043492,-300.0,0.00019174,2]
[334402776,1723035043502,-236.24535301,0.00019177,2]
[334402777,1723035043511,-522.06611583,0.00019177,2]
[334402778,1723035043521,-330.06238007,0.00019177,2]
[334402779,1723035043530,-211.62746688,0.00019177,2]
[334402780,1723035043539,-500.0,0.00019193,2]
[334402781,1723035043549,-500.0,0.00019216,2]
[334402782,1723035043558,-519.91345954,0.0001924,2]
[334402783,1723035043567,-962.114681,0.0001924,2]
[334402784,1723035043577,-500.0,0.00019255,2]
[334402785,1723035043587,-180.69,0.00019256,2]
[334402786,1723035043596,-347.18470265,0.00019285,2]
[334402787,1723035043606,-500.0,0.00019305,2]
[334402788,1723035043616,-268.62250222,0.00019319,2]
[334402789,1723035043625,-500.0,0.00019341,2]
[334402790,1723035043634,-401.16988804,0.00019398,2]
[334402791,1723035043645,-9899.91028482,0.00019451,2]
[334402792,1723035043655,-167.0,0.0001946,2]
[334402793,1723035043664,-500.0,0.00019555,2]
[334402794,1723035043673,-500.0,0.00019576,2]
[334402795,1723035043683,-500.0,0.00019715,2]
[334402796,1723035043692,-500.0,0.00019798,2]
[334402797,1723035043702,-167.10770799,0.000198,2]
[334402798,1723035043711,-500.0,0.00019809,2]
[334402799,1723035043720,-347.18470265,0.00019862,2]
[334402800,1723035043730,-200.0,0.00019873,2]
[334402801,1723035043740,-15480.7415892,0.0001989,4]
[334402802,1723035043749,-572.15,0.00019899,2]
[334402803,1723035043758,-556.80187622,0.00019899,2]
[334402804,1723035043767,-500.0,0.00019899,2]
[334402805,1723035043777,-500.0,0.00019899,2]
[334402806,1723035043786,-500.0,0.00019899,2]
[334402807,1723035043795,-229.08287298,0.00019899,2]
[334402808,1723035043804,-132277.7245,0.000199,2]
[334402809,1723035043814,-362.4786,0.000199,2]
[334402810,1723035043824,-500.0,0.00019956,2]
[334402811,1723035043833,-500.0,0.00019973,2]
[334402812,1723035043844,-1089.07185779,0.00019989,4]
[334402813,1723035043856,-14391.66973141,0.00019989,4]
[334402814,1723035043865,-15480.7415892,0.0001999,4]
[334402815,1723035043875,-15476.78696175,0.00019999,2]
[334402816,1723035043885,-9026.86902211,0.00019999,2]
[334402817,1723035043901,-1593.55023297,0.00019999,2]
[334402818,1723035043912,-4856.36770667,0.00019999,2]
[334402819,1723035043922,-155.0,0.0002,2]
[334402820,1723035043931,-155.0,0.0002,2]
[334402821,1723035043941,-2.76042346,0.0002,2]
[334402822,1723035043960,-152.23957654,0.0002,2]
[334402823,1723035043972,-988.65201496,0.0002,2]
[334402824,1723035043987,-862.39275442,0.0002,2]
[334402825,1723035043998,-473.15851009,0.0002,2]
[334402826,1723035044066,-2839.98033625,0.00011384,2]
[334402827,1723035044075,-1500.0,0.00012397,2]
[334402828,1723035044084,-202.81555917,0.00012666,2]
[334402829,1723035044095,-1197.90661519,0.00018176,2]
[334402830,1723035044104,-9751.99430619,0.0002,2]
[334402831,1723035044113,-155.0,0.0002,2]
[334402832,1723035044122,-1283.81002744,0.0002,2]
[334402833,1723035044131,-626.08260857,0.0002,2]
[334402834,1723035044140,-34223.33055132,0.0002,2]
[334402835,1723035044149,-500.0,0.00020034,2]
[334402836,1723035044158,-167.0,0.00020082,2]
[334402837,1723035044167,-500.0,0.00020118,2]
[334402838,1723035044177,-500.0,0.00020141,2]
[334402839,1723035044186,-1000.0,0.00020213,2]
[334402840,1723035044195,-2024.14563285,0.00020222,2]
[334402841,1723035044204,-153.2,0.0002036,2]
[334402842,1723035044213,-15480.7415892,0.0002037,4]
[334402843,1723035044222,-1405.50443999,0.0002038,2]
[334402844,1723035044231,-347.18470265,0.00020439,2]
[334402845,1723035044241,-230.59056336,0.00020439,2]
[334402846,1723035044250,-552.48,0.00020447,2]
[334402847,1723035044260,-3080.91987303,0.00020587,2]
[334402848,1723035044269,-719.68870544,0.00020588,2]
[334402849,1723035044278,-894.0,0.00020703,2]
[334402850,1723035044289,-167.0,0.00020703,2]
[334402851,1723035044299,-833.33,0.00020733,2]
[334402852,1723035044308,-500.0,0.00020733,2]
[334402853,1723035044317,-500.0,0.00020806,2]
[334402854,1723035044327,-3080.91987303,0.00020821,2]
[334402855,1723035044337,-500.0,0.00020822,2]
[334402856,1723035044354,-500.0,0.00020822,2]
[334402857,1723035044364,-500.0,0.00020822,2]
[334402858,1723035044373,-500.0,0.00020822,2]
[334402859,1723035044383,-155.0,0.00020831,2]
[334402860,1723035044393,-298.52611506,0.00020831,2]
[334402861,1723035044402,-500.0,0.00020872,2]
[334402862,1723035044411,-155.0,0.00020899,2]
[334402863,1723035044421,-2145.03106891,0.00020899,2]
[334402864,1723035044430,-206.68578726,0.00020899,2]
[334402865,1723035044439,-155.0,0.00020899,2]
[334402866,1723035044449,-2145.03106891,0.00020899,2]
[334402867,1723035044459,-165.44102244,0.00020899,2]
[334402868,1723035044469,-500.0,0.00020915,2]
[334402869,1723035044478,-500.0,0.00020988,2]
[334402870,1723035044488,-155.3786545,0.00020999,2]
[334402871,1723035044497,-357.30635393,0.00020999,2]
[334402872,1723035044506,-285.95091805,0.00020999,2]
[334402873,1723035044516,-433.10943562,0.00021,2]
[334402874,1723035044525,-347.18470265,0.00021016,2]
[334402875,1723035044534,-500.0,0.00021132,2]
[334402876,1723035044544,-530.69,0.00021135,2]
[334402877,1723035044553,-530.69,0.00021135,2]
[334402878,1723035044563,-530.69,0.00021135,2]
[334402879,1723035044572,-400.0,0.00021242,2]
[334402880,1723035044581,-2500.0,0.00021245,2]
[334402881,1723035044594,-500.0,0.00021253,2]
[334402882,1723035044603,-500.0,0.00021313,2]
[334402883,1723035044612,-500.0,0.00021316,2]
[334402884,1723035044621,-167.0,0.00021325,2]
[334402885,1723035044631,-500.0,0.0002136,2]
[334402886,1723035044640,-500.0,0.0002137,2]
[334402887,1723035044650,-500.0,0.0002137,2]
[334402888,1723035044660,-15480.7415892,0.0002146,4]
[334402889,1723035044669,-654.58490599,0.0002147,2]
[334402890,1723035044679,-180.69,0.0002152,2]
[334402891,1723035044688,-151.0,0.00021553,2]
[334402892,1723035044698,-347.18470265,0.00021592,2]
[334402893,1723035044707,-500.0,0.00021647,2]
[334402894,1723035044718,-1500.0,0.00021772,2]
[334402895,1723035044728,-167.10770799,0.0002185,2]
[334402896,1723035044737,-500.0,0.0002187,2]
[334402897,1723035044747,-874.15084149,0.0002187,4]
[334402898,1723035044756,-150.0,0.000219,2]
[334402899,1723035044766,-200.0,0.000219,2]
[334402900,1723035044776,-3635.19262513,0.000219,2]
[334402901,1723035044786,-152.0,0.00021906,3]
[334402902,1723035044795,-729.98,0.00021918,2]
[334402903,1723035044805,-150.0,0.00021918,2]
[334402904,1723035044815,-1972.91,0.00021918,2]
[334402905,1723035044825,-500.0,0.00021918,2]
[334402906,1723035044834,-500.0,0.00021918,2]
[334402907,1723035044845,-500.0,0.00021918,2]
[334402908,1723035044854,-500.0,0.00021918,2]
[334402909,1723035044864,-167.0,0.00021947,2]
[334402910,1723035044874,-1261.28972316,0.0002198,2]
[334402911,1723035044884,-500.0,0.00021989,7]
[334402912,1723035044895,-58808.2480202,0.0002199,4]
[334402913,1723035044905,-166.71147446,0.00021997,2]
[334402914,1723035044915,-149974.0915963,0.00022,7]
[334402915,1723035044924,-1706.86767955,0.00022,7]
[334402916,1723035044934,-150.0,0.00022,4]
[334402917,1723035044944,-500.0,0.00022047,2]
[334402918,1723035044953,-500.0,0.00022068,2]